Workbook

Sheet התחלה
B1: אודות תבנית זו
B2: עקוב אחר השקעה ראשונית באתר אינטרנט, היתרונות שלה והעלויות באמצעות כלי תקצוב זה של אתר אינטרנט.
B3: הזן פרטים בטבלאות לצורך חישוב אוטומטי של סכומים ומדדי הערכה.
B4: הערה:
B5: הוראות נוספות סופקו בעמודה A בגליון העבודה 'כלי תקציב'. טקסט זה הוסתר במכוון. כדי להסיר את הטקסט, בחר את עמודה A ולאחר מכן הקש DELETE. כדי לבטל את הסתרת הטקסט, בחר את עמודה A ולאחר מכן שנה את צבע הגופן.
B6: לקבלת מידע נוסף על הטבלאות בגיליון עבודה, הקש SHIFT ולאחר מכן F10 בתוך טבלה, בחר את האפשרות 'טבלה' ולאחר מכן בחר 'טקסט חלופי'.

Sheet כלי תקציב
B2: חומרת Quadrex
B3: כלי תקצוב של אתר אינטרנט
B4: 2022-12-01
B6: נתוני החברה | C6: שיעור
B7: שיעור תשואה נדרש | C7: 10%
B8: שיעור מס | C8: 30%
B10: השקעה ראשונית באתר אינטרנט | C10: שנה
B11: חומרה (לדוגמה, שרתים) | C11: ₪ 25,000.00
B12: תוכנה (לדוגמה, תוכנת קטלוג של מסחר אלקטרוני) | C12: ₪ 15,000.00
B13: פיתוח (לדוגמה, עיצוב ופיתוח של האתר על-ידי צד שלישי) | C13: ₪ 150,000.00
B14: סה"כ השקעות ראשוניות | C14: =SUBTOTAL(109,השקעה_ראשונית[שנה]) -> ₪ 190,000.00
B16: יתרונות של אתר האינטרנט | C16: שנה 1 | D16: שנה 2 | E16: שנה 3
B17: מכירות ישירות | C17: ₪ 15,000.00 | D17: ₪ 50,000.00 | E17: ₪ 75,000.00
B18: מכירות מצטברות הנובעות מיעילות משופרת של קידום מכירות/אנשי מכירות | C18: ₪ 25,000.00 | D18: ₪ 25,000.00 | E18: ₪ 25,000.00
B19: מכירות מצטברות הנובעות מהשתתפות מוגברת של שותפים | C19: ₪ 25,000.00 | D19: ₪ 25,000.00 | E19: ₪ 25,000.00
B20: עלויות נסיעה מופחתות | C20: ₪ 25,000.00 | D20: ₪ 25,000.00 | E20: ₪ 25,000.00
B21: עלויות שירות לקוחות מופחתות | C21: ₪ 50,000.00 | D21: ₪ 50,000.00 | E21: ₪ 50,000.00
B22: סה"כ הטבות | C22: =SUBTOTAL(109,יתרונות[שנה 1]) -> ₪ 140,000.00 | D22: =SUBTOTAL(109,יתרונות[שנה 2]) -> ₪ 175,000.00 | E22: =SUBTOTAL(109,יתרונות[שנה 3]) -> ₪ 200,000.00
B24: עלויות (למעט השקעות הון ראשוניות) | C24: שנה 1 | D24: שנה 2 | E24: שנה 3
B25: עלות מכירות | C25: ₪ 7,500.00 | D25: ₪ 25,000.00 | E25: ₪ 37,500.00
B26: תחזוקה | C26: ₪ 15,000.00 | D26: ₪ 15,000.00 | E26: ₪ 15,000.00
B27: ניהול פרוייקטים, תמיכת לקוחות | C27: ₪ 35,000.00 | D27: ₪ 35,000.00 | E27: ₪ 35,000.00
B28: פרסום מקוון, רישום במנועי חיפוש | C28: ₪ 10,000.00 | D28: ₪ 10,000.00 | E28: ₪ 10,000.00
B29: פחת על הוצאות הון (החישוב משתמש בתקופה של שלוש שנים) | C29: =השקעה_ראשונית[[#Totals],[שנה]]/3 -> ₪ 63,333.33 | D29: =השקעה_ראשונית[[#Totals],[שנה]]/3 -> ₪ 63,333.33 | E29: =השקעה_ראשונית[[#Totals],[שנה]]/3 -> ₪ 63,333.33
B30: עלויות כוללות | C30: =SUBTOTAL(109,עלויות[שנה 1]) -> ₪ 130,833.33 | D30: =SUBTOTAL(109,עלויות[שנה 2]) -> ₪ 148,333.33 | E30: =SUBTOTAL(109,עלויות[שנה 3]) -> ₪ 160,833.33
B32: סכומים כוללים | D32: שנה 1 | E32: שנה 2 | F32: שנה 3
B33: הטבות נטו (עלויות) | D33: =יתרונות[[#Totals],[שנה 1]]-עלויות[[#Totals],[שנה 1]] -> ₪ 9,166.67 | E33: =יתרונות[[#Totals],[שנה 2]]-עלויות[[#Totals],[שנה 2]] -> ₪ 26,666.67 | F33: =יתרונות[[#Totals],[שנה 3]]-עלויות[[#Totals],[שנה 3]] -> ₪ 39,166.67
B34: מס | D34: =D33*שיעור_מס -> ₪ 2,750.00 | E34: =E33*שיעור_מס -> ₪ 8,000.00 | F34: =F33*שיעור_מס -> ₪ 11,750.00
B35: רווח בניכוי מס | D35: =D33-D34 -> ₪ 6,416.67 | E35: ₪ 18,666.67 | F35: ₪ 27,416.67
B36: פחת שנוסף בחזרה | D36: =C29 -> ₪ 63,333.33 | E36: =D29 -> ₪ 63,333.33 | F36: =E29 -> ₪ 63,333.33
B37: תזרים מזומנים | C37: =-השקעה_ראשונית[[#Totals],[שנה]] -> -₪ 190,000.00 | D37: =D35+D36 -> ₪ 69,750.00 | E37: ₪ 82,000.00 | F37: ₪ 90,750.00
B38: תזרים מזומנים מצטבר | C38: =C37 -> -₪ 190,000.00 | D38: =C38+D37 -> ₪ -120,250.00 | E38: ₪ -38,250.00 | F38: ₪ 52,500.00
B40: מדדי הערכה | C40: ערכים
B41: ערך נוכחי נקי (NPV) | C41: =C37+(NPV(שיעור_תשואה,D37:F37)) -> ₪ 9,359.50
B42: שיעור תשואה פנימי (IRR) | C42: =IRR(C37:F37) -> 12.66%
B43: תקופת ההחזר (בשנים) | C43: =IF(F38<=0,"חורג מ- 3 שנים",IF(E38<=0,(F37-F38)/F37+2,IF(D38<=0,(E37-E38)/E37+1,IF(C38<=0,(D37-D38)/D37,"לא ישים")))) -> 2.42
